fUST/lending_fUST_20241005
["ID","MTS","AMOUNT","RATE_DAILY","PERIOD"]
[339863419,1728090646409,-151.0,0.0001898,2]
[339863420,1728090646418,-107.97710313,0.0001898,2]
[339863447,1728091832222,-172.580632,0.00017751,2]
[339863449,1728091832232,-172.580632,0.00017867,2]
[339863451,1728091832242,-172.580632,0.00017982,2]
[339863453,1728091832252,-498.33682946,0.0001805,2]
[339863455,1728091832264,-1.66317054,0.0001805,2]
[339863457,1728091832274,-172.580632,0.00018098,2]
[339863459,1728091832283,-172.580632,0.00018214,2]
[339863461,1728091832293,-153.0,0.000183,2]
[339863463,1728091832302,-153.0,0.000183,2]
[339863464,1728091832311,-93.78142114,0.00018329,2]
[339863546,1728091838368,-78.79921086,0.00018329,2]
[339863548,1728091838379,-153.3430944,0.00018352,2]
[339863550,1728091838389,-172.580632,0.00018445,2]
[339863552,1728091838401,-153.0,0.000185,2]
[339863554,1728091838412,-153.0,0.000185,2]
[339863555,1728091838421,-153.0,0.000185,2]
[339863557,1728091838430,-645.73303,0.0001855,2]
[339863558,1728091838440,-172.580632,0.00018561,2]
[339863559,1728091838449,-705.42092081,0.00018641,2]
[339863582,1728091846289,-749.77305732,0.00018641,2]
[339863588,1728092967089,-197.34003425,0.00016899,2]
[339863589,1728092967113,-878.42604912,0.00016998,2]
[339863660,1728093038302,-796.6653411,0.00016998,2]
[339863661,1728093038314,-8330.51686196,0.00016998,2]
[339863662,1728093038323,-2065.9214178,0.00016998,2]
[339863879,1728093040369,-722.0,0.00016998,2]
[339863881,1728093040384,-7829.61329512,0.00016998,2]
[339863883,1728093040395,-15000.0,0.00017,2]
[339863886,1728093040406,-160.39201196,0.00017,2]
[339863888,1728093040416,-165.070015,0.0001723,2]
[339863890,1728093040427,-165.070015,0.0001741,2]
[339863892,1728093040438,-165.070015,0.00017589,2]
[339863894,1728093040450,-165.070015,0.00017769,2]
[339863896,1728093040460,-165.070015,0.00017949,2]
[339863898,1728093040470,-208.5929054,0.00018,2]
[339863901,1728093040481,-500.0,0.0001805,2]
[339863903,1728093040490,-165.070015,0.00018128,2]
[339863905,1728093040501,-151.0,0.0001836,2]
[339863907,1728093040512,-276.86413,0.0001836,2]
[339863909,1728093040525,-276.86413,0.0001836,2]
[339863911,1728093040535,-152.337989,0.0001836,2]
[339863914,1728093040548,-151.0,0.0001836,2]
[339863916,1728093040557,-151.0,0.0001836,2]
[339863918,1728093040567,-151.0,0.0001836,2]
[339863920,1728093040578,-151.0,0.0001836,2]
[339863922,1728093040589,-151.0,0.0001836,2]
[339863924,1728093040600,-151.0,0.0001836,2]
[339863926,1728093040611,-151.0,0.0001836,2]
[339863929,1728093040622,-262.133901,0.0001836,2]
[339863931,1728093040633,-262.133901,0.0001836,2]
[339863933,1728093040643,-174.625871,0.0001836,2]
[339863935,1728093040652,-174.625871,0.0001836,2]
[339863937,1728093040661,-1128.233927,0.0001836,2]
[339863939,1728093040670,-1128.233927,0.0001836,2]
[339863941,1728093040679,-1833.845439,0.0001836,2]
[339863943,1728093040689,-249.147358,0.0001836,2]
[339863945,1728093040700,-1833.845439,0.0001836,2]
[339863947,1728093040710,-154.48546,0.0001836,2]
[339863949,1728093040720,-1099.975784,0.0001836,2]
[339863951,1728093040731,-1099.975784,0.0001836,2]
[339863953,1728093040741,-209.5454911,0.000184,2]
[339863955,1728093040752,-419.0043835,0.000184,2]
[339863957,1728093040762,-5360.5804003,0.00018444,2]
[339863959,1728093040772,-358.326714,0.0001846,2]
[339863961,1728093040782,-151.0,0.0001846,2]
[339863964,1728093040793,-358.326714,0.0001846,2]
[339863966,1728093040802,-158.924367,0.0001846,2]
[339863968,1728093040811,-517.689838,0.0001846,2]
[339863970,1728093040821,-517.689838,0.0001846,2]
[339863972,1728093040830,-226.558131,0.0001846,2]
[339863974,1728093040840,-226.558131,0.0001846,2]
[339863976,1728093040853,-152.992305,0.0001846,2]
[339863978,1728093040862,-151.0,0.0001846,2]
[339863980,1728093040872,-1869.52385,0.0001846,2]
[339863982,1728093040883,-151.0,0.0001846,2]
[339863984,1728093040896,-1869.52385,0.0001846,2]
[339863987,1728093040907,-411.657258,0.0001846,2]
[339863989,1728093040918,-151.0,0.0001846,2]
[339863991,1728093040929,-411.657258,0.0001846,2]
[339863993,1728093040939,-151.0,0.0001846,2]
[339863995,1728093040951,-229.638591,0.0001846,2]
[339863997,1728093040960,-229.638591,0.0001846,2]
[339863999,1728093040970,-331.924334,0.0001846,2]
[339864001,1728093040980,-684.756223,0.0001846,2]
[339864003,1728093040991,-331.924334,0.0001846,2]
[339864005,1728093041000,-684.756223,0.0001846,2]
[339864007,1728093041010,-265.36523,0.0001846,2]
[339864009,1728093041020,-276.86413,0.0001846,2]
[339864011,1728093041030,-276.86413,0.0001846,2]
[339864013,1728093041040,-276.86413,0.0001846,2]
[339864015,1728093041051,-276.86413,0.0001846,2]
[339864017,1728093041063,-276.86413,0.0001846,2]
[339864019,1728093041074,-276.86413,0.0001846,2]
[339864022,1728093041086,-276.86413,0.0001846,2]
[339864024,1728093041097,-276.86413,0.0001846,2]
[339864026,1728093041107,-75.33493247,0.0001846,2]
[339864028,1728093041121,-75.66506753,0.0001846,2]
[339864030,1728093041130,-151.0,0.0001846,2]
[339864032,1728093041139,-151.0,0.0001846,2]
[339864034,1728093041149,-151.0,0.0001846,2]
[339864036,1728093041158,-151.0,0.0001846,2]
[339864038,1728093041167,-151.0,0.0001846,2]
[339864040,1728093041177,-151.0,0.0001846,2]
[339864042,1728093041186,-151.0,0.0001846,2]
[339864044,1728093041196,-151.0,0.0001846,2]
[339864046,1728093041207,-151.0,0.0001846,2]
[339864048,1728093041218,-151.0,0.0001846,2]
[339864050,1728093041228,-151.0,0.0001846,2]
[339864052,1728093041238,-151.0,0.0001846,2]
[339864054,1728093041247,-151.0,0.0001846,2]
[339864056,1728093041256,-151.0,0.0001846,2]
[339864058,1728093041265,-151.0,0.0001846,2]
[339864060,1728093041274,-151.0,0.0001846,2]
[339864061,1728093041284,-151.0,0.0001846,2]
[339864064,1728093041293,-151.0,0.0001846,2]
[339864066,1728093041303,-151.0,0.0001846,2]
[339864068,1728093041313,-151.0,0.0001846,2]
[339864069,1728093041323,-165.247353,0.0001846,2]
[339864071,1728093041333,-152.371553,0.0001846,2]
[339864073,1728093041343,-262.133901,0.0001846,2]
[339864076,1728093041353,-262.133901,0.0001846,2]
[339864078,1728093041363,-262.133901,0.0001846,2]
[339864079,1728093041373,-262.133901,0.0001846,2]
[339864081,1728093041383,-262.133901,0.0001846,2]
[339864084,1728093041395,-262.133901,0.0001846,2]
[339864086,1728093041406,-262.133901,0.0001846,2]
[339864087,1728093041415,-262.133901,0.0001846,2]
[339864089,1728093041426,-174.625871,0.0001846,2]
[339864091,1728093041437,-174.625871,0.0001846,2]
[339864093,1728093041446,-174.625871,0.0001846,2]
[339864095,1728093041456,-174.625871,0.0001846,2]
[339864097,1728093041465,-174.625871,0.0001846,2]
[339864099,1728093041474,-174.625871,0.0001846,2]
[339864101,1728093041483,-174.625871,0.0001846,2]
[339864115,1728093041611,-174.625871,0.0001846,2]
[339864117,1728093041624,-1128.233927,0.0001846,2]
[339864119,1728093041633,-1128.233927,0.0001846,2]
[339864121,1728093041644,-1128.233927,0.0001846,2]
[339864123,1728093041653,-1128.233927,0.0001846,2]
[339864125,1728093041663,-1128.233927,0.0001846,2]
[339864127,1728093041674,-1128.233927,0.0001846,2]
[339864129,1728093041684,-1128.233927,0.0001846,2]
[339864131,1728093041693,-1128.233927,0.0001846,2]
[339864133,1728093041702,-1128.233927,0.0001846,2]
[339864135,1728093041712,-1128.233927,0.0001846,2]
[339864137,1728093041721,-1833.845439,0.0001846,2]
[339864139,1728093041730,-1833.845439,0.0001846,2]
[339864141,1728093041740,-1833.845439,0.0001846,2]
[339864143,1728093041750,-1833.845439,0.0001846,2]
[339864146,1728093041760,-1833.845439,0.0001846,2]
[339864148,1728093041769,-1833.845439,0.0001846,2]
[339864150,1728093041779,-1833.845439,0.0001846,2]
[339864152,1728093041788,-1833.845439,0.0001846,2]
[339864154,1728093041798,-1833.845439,0.0001846,2]
[339864156,1728093041808,-1833.845439,0.0001846,2]
[339864158,1728093041817,-1099.975784,0.0001846,2]
[339864160,1728093041828,-1099.975784,0.0001846,2]
[339864162,1728093041839,-1099.975784,0.0001846,2]
[339864164,1728093041851,-1099.975784,0.0001846,2]
[339864166,1728093041860,-918.43105447,0.0001846,2]
[339865119,1728093202266,10000.0,0.00010209,2]
[339865120,1728093212524,1700.0,0.00010209,2]
[339865222,1728094238639,-165.070015,0.00017574,2]
[339865224,1728094238650,-165.070015,0.00017758,2]
[339865226,1728094238660,-165.070015,0.00017941,2]
[339865228,1728094238670,-500.0,0.0001805,2]
[339865230,1728094238685,-165.070015,0.00018124,2]
[339865232,1728094238695,-419.0909822,0.000182,2]
[339865234,1728094238705,-209.5454911,0.000182,2]
[339865236,1728094238715,-5360.5804003,0.00018307,2]
[339865238,1728094238726,-165.070015,0.00018307,2]
[339865240,1728094238736,-410.91545971,0.00018398,2]
[339865242,1728094238746,-185.31728989,0.0001844,2]
[339865245,1728094238757,-185.31728989,0.0001844,2]
[339865247,1728094238768,-185.31728989,0.00018441,2]
[339865249,1728094238778,-185.31728989,0.00018441,2]
[339865251,1728094238788,-185.31728989,0.00018441,2]
[339865253,1728094238797,-201.0,0.0001845,2]
[339865255,1728094238807,-300.0,0.00018459,2]
[339865257,1728094238817,-151.0,0.0001846,2]
[339865259,1728094238827,-151.0,0.0001846,2]
[339865261,1728094238837,-151.0,0.0001846,2]
[339865263,1728094238847,-151.629743,0.0001846,2]
[339865265,1728094238857,-151.0,0.0001846,2]
[339865267,1728094238866,-226.558131,0.0001846,2]
[339865269,1728094238876,-226.558131,0.0001846,2]
[339865271,1728094238886,-165.070015,0.0001849,2]
[339865273,1728094238896,-378.3911697,0.000185,2]
[339865275,1728094238907,-178.30978191,0.00018531,2]
[339865277,1728094238918,-34052.0449552,0.00018531,2]
[339865279,1728094238927,-37594.65186306,0.00018531,2]
[339865282,1728094238941,-24806.73050683,0.00018531,2]
[339865365,1728094240633,-8145.72059431,0.00018531,2]
[339865367,1728094240644,-4563.59110152,0.00018536,2]
[339865369,1728094240654,-5747.98038102,0.00018537,2]
[339865372,1728094240665,-6062.94165202,0.00018537,2]
[339865374,1728094240675,-834.059075,0.00018537,2]
[339865376,1728094240700,-208.77892429,0.0001854,2]
[339865378,1728094240710,-151.0,0.00018541,2]
[339865380,1728094240721,-171.247596,0.00018541,2]
[339865382,1728094240732,-151.877408,0.00018541,2]
[339865385,1728094240744,-228.069929,0.00018541,2]
[339865386,1728094240755,-151.0,0.00018541,2]
[339865388,1728094240767,-261.022413,0.00018541,2]
[339865390,1728094240777,-226.558131,0.00018541,2]
[339865392,1728094240787,-226.558131,0.00018541,2]
[339865394,1728094240797,-226.558131,0.00018541,2]
[339865396,1728094240807,-226.558131,0.00018541,2]
[339865398,1728094240817,-226.558131,0.00018541,2]
[339865400,1728094240827,-226.558131,0.00018541,2]
[339865402,1728094240838,-226.558131,0.00018541,2]
[339865404,1728094240848,-226.558131,0.00018541,2]
[339865406,1728094240859,-151.0,0.00018541,2]
[339865408,1728094240872,-151.0,0.00018541,2]
[339865410,1728094240883,-151.0,0.00018541,2]
[339865412,1728094240893,-151.0,0.00018541,2]
[339865414,1728094240906,-151.0,0.00018541,2]
[339865416,1728094240917,-256.205993,0.00018541,2]
[339865419,1728094240929,-152.337989,0.00018541,2]
[339865421,1728094240940,-159.717251,0.00018541,2]
[339865423,1728094240951,-159.717251,0.00018541,2]
[339865424,1728094240961,-159.717251,0.00018541,2]
[339865426,1728094240972,-159.717251,0.00018541,2]
[339865428,1728094240983,-159.717251,0.00018541,2]
[339865430,1728094240993,-159.717251,0.00018541,2]
[339865432,1728094241002,-159.717251,0.00018541,2]
[339865434,1728094241013,-159.717251,0.00018541,2]
[339865436,1728094241023,-159.717251,0.00018541,2]
[339865438,1728094241033,-159.717251,0.00018541,2]
[339865440,1728094241043,-159.717251,0.00018541,2]
[339865442,1728094241053,-159.717251,0.00018541,2]
[339865444,1728094241063,-151.0,0.00018541,2]
[339865446,1728094241076,-151.0,0.00018541,2]
[339865448,1728094241086,-151.0,0.00018541,2]
[339865450,1728094241099,-151.0,0.00018541,2]
[339865452,1728094241110,-161.871555,0.00018541,2]
[339865454,1728094241121,-229.638591,0.00018541,2]
[339865456,1728094241133,-229.638591,0.00018541,2]
[339865459,1728094241144,-229.638591,0.00018541,2]
[339865460,1728094241154,-229.638591,0.00018541,2]
[339865463,1728094241164,-229.638591,0.00018541,2]
[339865465,1728094241174,-229.638591,0.00018541,2]
[339865466,1728094241184,-229.638591,0.00018541,2]
[339865468,1728094241194,-229.638591,0.00018541,2]
[339865470,1728094241204,-229.638591,0.00018541,2]
[339865472,1728094241213,-229.638591,0.00018541,2]
[339865474,1728094241222,-229.638591,0.00018541,2]
[339865476,1728094241233,-229.638591,0.00018541,2]
[339865478,1728094241243,-229.638591,0.00018541,2]
[339865480,1728094241253,-229.638591,0.00018541,2]
[339865482,1728094241263,-161.753226,0.00018541,2]
[339865484,1728094241273,-161.753226,0.00018541,2]
[339865486,1728094241283,-161.753226,0.00018541,2]
[339865488,1728094241296,-161.753226,0.00018541,2]
[339865490,1728094241307,-161.753226,0.00018541,2]
[339865492,1728094241317,-161.753226,0.00018541,2]
[339865515,1728094241521,-161.753226,0.00018541,2]
[339865518,1728094241563,-161.753226,0.00018541,2]
[339865520,1728094241574,-161.753226,0.00018541,2]
[339865522,1728094241583,-161.753226,0.00018541,2]
[339865524,1728094241593,-161.753226,0.00018541,2]
[339865526,1728094241603,-161.753226,0.00018541,2]
[339865528,1728094241612,-222.108212,0.00018541,2]
[339865530,1728094241622,-161.753226,0.00018541,2]
[339865532,1728094241632,-222.108212,0.00018541,2]
[339865534,1728094241642,-161.753226,0.00018541,2]
[339865536,1728094241651,-222.108212,0.00018541,2]
[339865538,1728094241661,-161.753226,0.00018541,2]
[339865539,1728094241671,-222.108212,0.00018541,2]
[339865542,1728094241685,-161.753226,0.00018541,2]
[339865544,1728094241695,-222.108212,0.00018541,2]
[339865546,1728094241704,-222.108212,0.00018541,2]
[339865547,1728094241713,-161.753226,0.00018541,2]
[339865549,1728094241723,-222.108212,0.00018541,2]
[339865551,1728094241733,-161.753226,0.00018541,2]
[339865553,1728094241742,-222.108212,0.00018541,2]
[339865555,1728094241752,-222.108212,0.00018541,2]
[339865557,1728094241762,-222.108212,0.00018541,2]
[339865559,1728094241771,-222.108212,0.00018541,2]
[339865561,1728094241781,-222.108212,0.00018541,2]
[339865563,1728094241792,-222.108212,0.00018541,2]
[339865565,1728094241801,-222.108212,0.00018541,2]
[339865567,1728094241810,-222.108212,0.00018541,2]
[339865569,1728094241821,-222.108212,0.00018541,2]
[339865571,1728094241831,-222.108212,0.00018541,2]
[339865573,1728094241840,-151.0,0.00018541,2]
[339865574,1728094241849,-222.108212,0.00018541,2]
[339865576,1728094241859,-151.0,0.00018541,2]
[339865579,1728094241870,-151.0,0.00018541,2]
[339865580,1728094241879,-151.0,0.00018541,2]
[339865582,1728094241888,-153.852756,0.00018541,2]
[339865584,1728094241898,-151.0,0.00018541,2]
[339865586,1728094241907,-151.0,0.00018541,2]
[339865588,1728094241917,-151.0,0.00018541,2]
[339865590,1728094241927,-151.0,0.00018541,2]
[339865592,1728094241936,-151.0,0.00018541,2]
[339865594,1728094241946,-152.992305,0.00018541,2]
[339865596,1728094241956,-151.0,0.00018541,2]
[339865598,1728094241966,-151.0,0.00018541,2]
[339865600,1728094241976,-151.0,0.00018541,2]
[339865602,1728094241986,-151.0,0.00018541,2]
[339865604,1728094241996,-151.0,0.00018541,2]
[339865606,1728094242005,-151.0,0.00018541,2]
[339865608,1728094242016,-151.0,0.00018541,2]
[339865610,1728094242026,-151.0,0.00018541,2]
[339865612,1728094242036,-173.494914,0.00018541,2]
[339865614,1728094242046,-151.0,0.00018541,2]
[339865616,1728094242056,-199.824664,0.00018541,2]
[339865618,1728094242066,-411.657258,0.00018541,2]
[339865620,1728094242077,-411.657258,0.00018541,2]
[339865622,1728094242087,-411.657258,0.00018541,2]
[339865624,1728094242097,-411.657258,0.00018541,2]
[339865626,1728094242106,-411.657258,0.00018541,2]
[339865628,1728094242115,-411.657258,0.00018541,2]
[339865630,1728094242125,-411.657258,0.00018541,2]
[339865631,1728094242135,-411.657258,0.00018541,2]
[339865633,1728094242144,-411.657258,0.00018541,2]
[339865635,1728094242153,-411.657258,0.00018541,2]
[339865637,1728094242163,-411.657258,0.00018541,2]
[339865639,1728094242172,-411.657258,0.00018541,2]
[339865641,1728094242181,-151.0,0.00018541,2]
[339865643,1728094242190,-411.657258,0.00018541,2]
[339865645,1728094242200,-411.657258,0.00018541,2]
[339865647,1728094242209,-411.657258,0.00018541,2]
[339865649,1728094242218,-411.657258,0.00018541,2]
[339865651,1728094242228,-411.657258,0.00018541,2]
[339865652,1728094242238,-411.657258,0.00018541,2]
[339865653,1728094242247,-151.0,0.00018541,2]
[339865654,1728094242257,-151.0,0.00018541,2]
[339865655,1728094242269,-151.0,0.00018541,2]
[339865656,1728094242279,-151.0,0.00018541,2]
[339865657,1728094242290,-151.0,0.00018541,2]
[339865658,1728094242303,-151.0,0.00018541,2]
[339865659,1728094242316,-151.0,0.00018541,2]
[339865660,1728094242327,-151.0,0.00018541,2]
[339865661,1728094242339,-165.853481,0.00018541,2]
[339865662,1728094242349,-151.0,0.00018541,2]
[339865663,1728094242358,-151.0,0.00018541,2]
[339865664,1728094242368,-151.0,0.00018541,2]
[339865665,1728094242377,-151.0,0.00018541,2]
[339865666,1728094242387,-151.0,0.00018541,2]
[339865667,1728094242396,-151.0,0.00018541,2]
[339865668,1728094242405,-151.0,0.00018541,2]
[339865669,1728094242415,-151.0,0.00018541,2]
[339865670,1728094242424,-151.0,0.00018541,2]
[339865671,1728094242434,-154.48546,0.00018541,2]
[339865672,1728094242443,-151.0,0.00018541,2]
[339865674,1728094242452,-151.0,0.00018541,2]
[339865676,1728094242462,-151.0,0.00018541,2]
[339865678,1728094242471,-283.510458,0.00018541,2]
[339865680,1728094242480,-564.116963,0.00018541,2]
[339865682,1728094242490,-564.116963,0.00018541,2]
[339865684,1728094242499,-564.116963,0.00018541,2]
[339865686,1728094242509,-564.116963,0.00018541,2]
[339865688,1728094242519,-564.116963,0.00018541,2]
[339865690,1728094242529,-517.689838,0.00018541,2]
[339865692,1728094242539,-564.116963,0.00018541,2]
[339865694,1728094242548,-564.116963,0.00018541,2]
[339865696,1728094242557,-517.689838,0.00018541,2]
[339865698,1728094242567,-564.116963,0.00018541,2]
[339865701,1728094242576,-517.689838,0.00018541,2]
[339865702,1728094242585,-564.116963,0.00018541,2]
[339865705,1728094242595,-517.689838,0.00018541,2]
[339865707,1728094242604,-564.116963,0.00018541,2]
[339865709,1728094242613,-517.689838,0.00018541,2]
[339865711,1728094242623,-564.116963,0.00018541,2]
[339865713,1728094242632,-517.689838,0.00018541,2]
[339865715,1728094242642,-564.116963,0.00018541,2]
[339865717,1728094242651,-517.689838,0.00018541,2]
[339865719,1728094242661,-564.116963,0.00018541,2]
[339865721,1728094242670,-517.689838,0.00018541,2]
[339865723,1728094242683,-564.116963,0.00018541,2]
[339865725,1728094242692,-564.116963,0.00018541,2]
[339865727,1728094242702,-517.689838,0.00018541,2]
[339865729,1728094242711,-564.116963,0.00018541,2]
[339865731,1728094242720,-517.689838,0.00018541,2]
[339865733,1728094242731,-564.116963,0.00018541,2]
[339865735,1728094242740,-517.689838,0.00018541,2]
[339865737,1728094242749,-564.116963,0.00018541,2]
[339865739,1728094242760,-517.689838,0.00018541,2]
[339865741,1728094242770,-564.116963,0.00018541,2]
[339865743,1728094242780,-517.689838,0.00018541,2]
[339865745,1728094242789,-564.116968,0.00018541,2]
[339865747,1728094242799,-517.689838,0.00018541,2]
[339865749,1728094242808,-517.689838,0.00018541,2]
[339865751,1728094242818,-517.689838,0.00018541,2]
[339865753,1728094242828,-916.922719,0.00018541,2]
[339865755,1728094242837,-916.922719,0.00018541,2]
[339865757,1728094242846,-916.922719,0.00018541,2]
[339865759,1728094242856,-517.689838,0.00018541,2]
[339865761,1728094242866,-517.689838,0.00018541,2]
[339865764,1728094242875,-916.922719,0.00018541,2]
[339865766,1728094242884,-916.922719,0.00018541,2]
[339865768,1728094242894,-916.922719,0.00018541,2]
[339865770,1728094242903,-916.922719,0.00018541,2]
[339865773,1728094242912,-916.922719,0.00018541,2]
[339865775,1728094242922,-916.922719,0.00018541,2]
[339865778,1728094242932,-358.326714,0.00018541,2]
[339865780,1728094242941,-916.922719,0.00018541,2]
[339865782,1728094242950,-358.326714,0.00018541,2]
[339865784,1728094242960,-916.922719,0.00018541,2]
[339865786,1728094242969,-358.326714,0.00018541,2]
[339865788,1728094242978,-916.922719,0.00018541,2]
[339865790,1728094242988,-358.326714,0.00018541,2]
[339865792,1728094242997,-358.326714,0.00018541,2]
[339865794,1728094243006,-916.922719,0.00018541,2]
[339865796,1728094243017,-358.326714,0.00018541,2]
[339865798,1728094243026,-916.922719,0.00018541,2]
[339865800,1728094243036,-358.326714,0.00018541,2]
[339865802,1728094243047,-916.922719,0.00018541,2]
[339865804,1728094243058,-358.326714,0.00018541,2]
[339865806,1728094243067,-916.922719,0.00018541,2]
[339865808,1728094243077,-358.326714,0.00018541,2]
[339865810,1728094243087,-916.922719,0.00018541,2]
[339865813,1728094243096,-358.326714,0.00018541,2]
[339865815,1728094243105,-916.922719,0.00018541,2]
[339865817,1728094243115,-358.326714,0.00018541,2]
[339865819,1728094243124,-358.326714,0.00018541,2]
[339865821,1728094243135,-358.326714,0.00018541,2]
[339865823,1728094243145,-358.326714,0.00018541,2]
[339865825,1728094243154,-358.326714,0.00018541,2]
[339865827,1728094243166,-358.326714,0.00018541,2]
[339865829,1728094243176,-358.326714,0.00018541,2]
[339865831,1728094243187,-358.326714,0.00018541,2]
[339865833,1728094243196,-158.924367,0.00018541,2]
[339865837,1728094243206,-358.326714,0.00018541,2]
[339865839,1728094243216,-358.326714,0.00018541,2]
[339865841,1728094243227,-276.86413,0.00018541,2]
[339865843,1728094243237,-151.0,0.00018541,2]
[339865845,1728094243247,-276.86413,0.00018541,2]
[339865847,1728094243257,-151.0,0.00018541,2]
[339865849,1728094243266,-276.86413,0.00018541,2]
[339865851,1728094243276,-151.0,0.00018541,2]
[339865853,1728094243286,-276.86413,0.00018541,2]
[339865855,1728094243296,-151.0,0.00018541,2]
[339865858,1728094243305,-264.036501,0.00018541,2]
[339865860,1728094243315,-276.86413,0.00018541,2]
[339865862,1728094243325,-276.86413,0.00018541,2]
[339865864,1728094243334,-276.86413,0.00018541,2]
[339865866,1728094243346,-276.86413,0.00018541,2]
[339865868,1728094243356,-276.86413,0.00018541,2]
[339865870,1728094243367,-276.86413,0.00018541,2]
[339865872,1728094243377,-276.86413,0.00018541,2]
[339865875,1728094243389,-276.86413,0.00018541,2]
[339865877,1728094243400,-276.86413,0.00018541,2]
[339865879,1728094243410,-276.86413,0.00018541,2]
[339865881,1728094243420,-276.86413,0.00018541,2]
[339865883,1728094243430,-276.86413,0.00018541,2]
[339865885,1728094243440,-276.86413,0.00018541,2]
[339865888,1728094243451,-276.86413,0.00018541,2]
[339865890,1728094243462,-276.86413,0.00018541,2]
[339865892,1728094243474,-276.864139,0.00018541,2]
[339865894,1728094243486,-151.0,0.00018541,2]
[339865896,1728094243496,-151.0,0.00018541,2]
[339865898,1728094243506,-151.0,0.00018541,2]
[339865913,1728094243636,-282.99017,0.00018541,2]
[339865916,1728094243649,-1869.52385,0.00018541,2]
[339865918,1728094243659,-1869.52385,0.00018541,2]
[339865920,1728094243670,-1869.52385,0.00018541,2]
[339865922,1728094243681,-1869.52385,0.00018541,2]
[339865924,1728094243691,-1869.52385,0.00018541,2]
[339865927,1728094243702,-1869.52385,0.00018541,2]
[339865929,1728094243713,-57.59021706,0.00018541,2]
[339866043,1728094244772,-21.95440986,0.000182,2]
[339868478,1728094269221,1000.0,0.00023,120]
[339868993,1728094762006,289.0,0.00021,120]
[339869127,1728095439009,-4176.04734025,0.00017575,2]
[339869158,1728095440842,-1141.53950195,0.00017575,2]
[339869159,1728095440853,-208.8673663,0.0001762,2]
[339869160,1728095440865,-500.0,0.00017955,2]
[339869161,1728095440877,-1614.75439153,0.0001818,3]
[339869162,1728095440887,-4459.21727168,0.00018205,2]
[339869164,1728095440900,-300.0,0.0001826,2]
[339869166,1728095440911,-300.0,0.0001826,2]
[339869168,1728095440922,-204.635771,0.00018382,2]
[339869170,1728095440933,-243.721324,0.00018382,2]
[339869172,1728095440943,-209.5454911,0.000184,2]
[339869173,1728095440953,-187.5910812,0.000184,2]
[339869174,1728095440966,-209.5454911,0.000184,2]
[339869175,1728095440975,-722.029183,0.00018455,2]
[339869176,1728095440984,-209.5454911,0.000185,2]
[339869178,1728095440994,-209.5454911,0.000185,2]
[339869180,1728095441007,-2586.13,0.00018541,2]
[339869182,1728095441015,-209.5952082,0.00018548,2]
[339869184,1728095441026,-209.5952082,0.00018548,2]
[339869186,1728095441035,-209.5952082,0.00018548,2]
[339869188,1728095441047,-216.2947716,0.00018548,2]
[339869189,1728095441057,-306.7091303,0.00018548,2]
[339869190,1728095441066,-208.5929054,0.00018548,2]
[339869191,1728095441076,-209.5952082,0.000186,2]
[339869192,1728095441085,-209.5952082,0.000186,2]
[339869193,1728095441097,-4361.48406924,0.000186,2]
[339869194,1728095441107,-300.433473,0.0001864,2]
[339869195,1728095441119,-150.01,0.0001864,2]
[339869196,1728095441129,-4132.03219282,0.0001864,2]
[339869197,1728095441141,-500.96689417,0.00018673,2]
[339869198,1728095441151,-500.0,0.00018673,2]
[339869199,1728095441162,-151.0,0.0001869,2]